Cogmind - Beta 12 @@@ ROGUE MODE // 2023.11.28 @ 13:28:53 Player: HabNab Result: Destroyed by S-43 Plague with Heavy Machine Gun Performance ------------- Evolutions (9) 4500 Regions Visited (21) 4200 Robots Destroyed (185) 925 Value Destroyed (7731) 7731 Prototype IDs (25) 500 Alien Tech Used (2) 400 Bonus (2339) 2339 TOTAL SCORE: 20595 Bonus ------- High Alert Combat Kills 979 Follower Combat Kills 304 Entered DSFs 500 Met Data Miner 300 Met Zhirov 300 Friendly Fire -44 Cogmind --------- Core Integrity 0/1600 Matter 269/300 Energy 56/100 System Corruption 2% Temperature Cool (0) Movement Core (100) Ox1 Location -1/Access Parts ------- > --- POWER (2) -------- (None) > --- PROPULSION (5) --- (None) > --- UTILITY (14) ----- Advanced Terrain Scan Processor Advanced Particle Charger > --- WEAPON (4) ------- (None) > --- INVENTORY (5) ---- Fusion Reactor Peak State ------------ > --- POWER ------------ Light Nuclear Core Fusion Reactor > --- PROPULSION ------- Improved Titanium Leg Myomer Leg Myomer Leg Myomer Leg > --- UTILITY ---------- Advanced Heat Sink Advanced Heat Sink High-capacity Storage Unit Structural Scanner Terrain Scanner Makeshift Salvage Targeting Computer Advanced Targeting Computer Improved Melee Analysis Suite Weapon Cycler Improved Weapon Cycler Experimental Core Shielding > --- WEAPON ----------- Quantum Rifle Quantum Rifle Advanced Plasma Cannon Coil Gun > --- INVENTORY -------- Neutrino Core Energy Well Kinecellerator Heavy Laser Heavy Laser Wave Gun Matter Neutralizer Coil Gun Coil Gun KE Penetrator Plasma Flamer Plasma Flamer Plasma Flamer Makeshift Spear [Rating: 112] Favorites ----------- Power Light Nuclear Core Engine Light Angular Momentum Engine Power Core Light Nuclear Core Reactor Fusion Reactor Propulsion Advanced Treads Treads Advanced Treads Leg Myomer Leg Wheel Wheel Flight Unit Impulse Thruster Array Utility Advanced Targeting Computer Device Improved Cooling System Storage High-capacity Storage Unit Processor Advanced Targeting Computer Protection Improved Medium Armor Plating Weapon Gatling Laser Energy Gun Gatling Laser Energy Cannon Heavy Ion Cannon Ballistic Gun High-powered Shotgun Launcher Heavy Shock Bomb Launcher Special Weapon Plasma Flamer Piercing Weapon Makeshift Spear Build | -11 -10 -9 -8 -7 -7 -7 -7 -6 -6 -5 -5 -5 -5 -4 -4 -4 -4 -3 -2 -2 -1 ------- Run | Jun Mat Mat Mat Fac Low Low Dat Pro Fac Fac Upp Upp Zhi Pro Fac Upp Upp Res Res DSF Acc Slots Evolved 18 | . . 2 2 2 . . . . 2 2 . . . . 2 . . 2 2 . 2 Power 1 | . . . . . . . . . 1 . . . . . . . . . . . . Propulsion 3 | . . 1 . 1 . . . . . . . . . . . . . . 1 . . Utility 12 | . . 1 1 1 . . . . 1 1 . . . . 2 . . 2 1 . 2 Weapon 2 | . . . 1 . . . . . . 1 . . . . . . . . . . . Parts Attached 168 | . 5 17 15 5 . 8 . 1 5 22 24 4 4 5 11 7 . 19 . . 16 Power 28 | . . 2 1 2 . 1 . . 1 5 5 . 1 1 . 2 . 3 . . 4 Engine 10 | . . 2 . 2 . 1 . . . 2 1 . . . . 1 . 1 . . . Core 9 | . . . 1 . . . . . 1 2 3 . . 1 . . . 1 . . . Reactor 9 | . . . . . . . . . . 1 1 . 1 . . 1 . 1 . . 4 Propulsion 42 | . 3 6 2 1 . 5 . . 1 6 2 . . 2 3 . . 6 . . 5 Treads 26 | . 3 6 2 1 . 5 . . 1 6 2 . . . . . . . . . . Leg 4 | . . . . . . . . . . . . . . 1 3 . . . . . . Wheel 1 | . . . . . . . . . . . . . . 1 . . . . . . . Hover . | . . . . . . . . . . . . . . . . . . . . . . Flight 11 | . . . . . . . . . . . . . . . . . . 6 . . 5 Utility 60 | . 1 6 7 2 . 1 . 1 2 6 6 2 3 . 7 2 . 7 . . 7 Device 37 | . . . 4 1 . . . . 1 5 4 2 2 . 5 2 . 4 . . 7 Storage 2 | . 1 1 . . . . . . . . . . . . . . . . . . . Processor 9 | . . 1 2 . . . . . . . 2 . . . 1 . . 3 . . . Hackware . | . . . . . . . . . . . . . . . . . . . . . . Protection 12 | . . 4 1 1 . 1 . 1 1 1 . . 1 . 1 . . . . . . Artifact . | . . . . . . . . . . . . . . . . . . . . . . Weapon 38 | . 1 3 5 . . 1 . . 1 5 11 2 . 2 1 3 . 3 . . . Energy Gun 19 | . 1 1 4 . . 1 . . 1 3 3 1 . . 1 2 . 1 . . . Energy Cannon 7 | . . . 1 . . . . . . 2 2 . . 1 . . . 1 . . . Ballistic Gun 5 | . . 2 . . . . . . . . 1 1 . . . 1 . . . . . Ballistic Cannon . | . . . . . . . . . . . . . . . . . . . . . . Launcher 1 | . . . . . . . . . . . . . . 1 . . . . . . . Special Weapon 5 | . . . . . . . . . . . 5 . . . . . . . . . . Impact Weapon . | . . . . . . . . . . . . . . . . . . . . . . Slashing Weapon . | . . . . . . . . . . . . . . . . . . . . . . Piercing Weapon 1 | . . . . . . . . . . . . . . . . . . 1 . . . Special Melee Weapon . | . . . . . . . . . . . . . . . . . . . . . . Unidentified Prototypes 5 | . . . . . . . . . . . . . 5 . . . . . . . . Parts Lost 79 | . . 1 . . . 5 . . 1 10 10 4 . 9 1 4 3 8 . . 23 Power 14 | . . . . . . 1 . . . 3 3 1 . 1 . 1 . 1 . . 3 Propulsion 19 | . . 1 . . . 3 . . 1 . 2 . . 3 . . . 2 . . 7 Utility 31 | . . . . . . . . . . 3 2 2 . 2 1 2 3 3 . . 13 Weapon 15 | . . . . . . 1 . . . 4 3 1 . 3 . 1 . 2 . . . Highest Loss Streak 14 | . . 1 . . . 5 . . 1 6 7 4 . 5 1 2 3 5 . . 14 To Critical Strikes 4 | . . . . . . 1 . . . . 2 . . 1 . . . . . . . Average Slot Usage (%) 91 | . 85 98 99 100 100 99 100 100 99 93 86 84 83 82 84 98 94 84 56 56 45 Engine 4 | . 14 11 8 6 7 6 7 7 6 4 . . . . . . . . . . . Core 3 | . . . . . . . . . 6 4 9 7 5 4 5 5 5 1 . . . Reactor 1 | . . . . . . . . . . 1 . . 1 5 5 4 5 3 4 4 3 Treads 18 | . 27 31 27 30 30 29 30 30 26 17 10 11 11 5 . . . . . . . Leg 1 | . . . . . . . . . . . . . . 2 9 21 21 8 . . . Device 15 | . . . 8 15 15 15 15 15 19 23 23 22 22 20 22 23 26 24 21 21 15 Storage 6 | . 14 11 9 7 7 7 7 7 6 5 5 5 5 5 5 5 5 2 . . . Processor 8 | . . 11 9 7 7 7 7 7 6 5 9 11 9 5 10 6 5 16 17 17 14 Protection 5 | . . 11 9 7 7 7 7 7 6 3 . . 1 5 5 10 5 4 . . . Energy Gun 15 | . 14 11 24 23 23 23 23 23 20 20 7 11 11 11 15 11 10 5 . . . Energy Cannon 2 | . . . . . . . . . . 2 6 6 5 5 5 5 5 2 . . . Ballistic Gun 3 | . 14 10 1 . . . . . . . 1 3 5 2 . 3 5 2 . . . Naked Turns . | . . . . . . . . . . . . . . . . . . . . . . Heaviest Build 105 | 12 16 63 67 72 72 72 71 72 91 103 105 83 88 95 93 97 97 97 17 17 26 Greatest Support 140 | 20 40 66 66 86 86 93 93 93 93 140 140 140 70 70 95 95 95 95 30 30 40 Greatest Overweight (x) 31 | . . 1 1 . . . . . . 1 1 1 1 31 4 1 1 1 . . 1 Average Overweight (x) . | . . . . . . . . . . . . . 1 4 1 . . . . . . Largest Inventory Capacity 20 | 8 10 20 20 20 20 20 20 20 20 20 20 20 20 20 20 20 20 20 5 5 5 Average Capacity 18 | 8 8 18 20 20 20 20 20 20 20 20 20 20 20 20 20 20 20 14 5 5 5 Most Carried 20 | 6 10 20 20 20 20 20 20 20 20 20 20 17 20 18 18 20 19 20 2 2 5 Average Carried 16 | 6 8 17 19 19 20 18 20 20 18 18 13 15 17 15 11 18 19 10 2 2 3 Final Capacity 20 | 8 10 20 20 20 20 20 20 20 20 20 20 20 20 20 20 20 20 5 5 5 5 Final Carried 20 | 6 10 20 20 20 20 20 20 20 19 17 14 17 18 14 18 19 19 2 2 2 1 Class Distribution -------------------- 44% | Scavenger-Gunner 18% | Gunner 15% | Mutant 11% | Scavenger-Tank 4% | Scavenger-Mutant Dominant Class ---------------- Mutant | -10/Materials Mutant | -9/Materials Gunner | -8/Materials Gunner | -7/Factory Gunner | -7/Lower Caves Scavenger-Gunner | -7/Lower Caves Scavenger-Gunner | -7/Data Miner Scavenger-Gunner | -6/Proximity Caves Scavenger-Tank | -6/Factory Scavenger-Tank | -5/Factory Scavenger-Gunner | -5/Upper Caves Scavenger-Gunner | -5/Upper Caves Scavenger-Gunner | -5/Zhirov Scavenger-Gunner | -4/Proximity Caves Scavenger-Gunner | -4/Factory Scavenger-Gunner | -4/Upper Caves Scavenger-Gunner | -4/Upper Caves Scavenger-Gunner | -3/Research Scavenger-Gunner | -2/Research Mutant | -2/DSF Mutant | -1/Access Resources | -11 -10 -9 -8 -7 -7 -7 -7 -6 -6 -5 -5 -5 -5 -4 -4 -4 -4 -3 -2 -2 -1 ----------- Run | Jun Mat Mat Mat Fac Low Low Dat Pro Fac Fac Upp Upp Zhi Pro Fac Upp Upp Res Res DSF Acc Matter Collected 2147 | 200 93 362 139 90 . 76 . 8 51 196 280 78 . 136 105 133 . 186 . . 14 Remotely . | . . . . . . . . . . . . . . . . . . . . . . Salvage Created 7576 | . 132 787 1107 99 363 384 . 80 246 2271 533 449 . 344 248 358 . 175 . . . Parts 338 | . 18 58 51 3 14 20 . 4 8 93 12 20 . 8 14 5 . 10 . . . Haulers Intercepted 3 | . . . 2 . . . . . . 1 . . . . . . . . . . . Recyclers Shooed 9 | . 2 4 . . . . . . . 3 . . . . . . . . . . . Parts Field Recycled . | . . . . . . . . . . . . . . . . . . . . . . Retrieved Matter . | . . . . . . . . . . . . . . . . . . . . . . Parts Self-Destructed 75 | . . . . . 13 17 . 4 . . 12 16 . 8 . 5 . . . . . Prevented . | . . . . . . . . . . . . . . . . . . . . . . Kills | -11 -10 -9 -8 -7 -7 -7 -7 -6 -6 -5 -5 -5 -5 -4 -4 -4 -4 -3 -2 -2 -1 ------- Run | Jun Mat Mat Mat Fac Low Low Dat Pro Fac Fac Upp Upp Zhi Pro Fac Upp Upp Res Res DSF Acc Combat Hostiles Destroyed 158 | . 5 18 26 1 7 11 . 4 6 39 13 8 . 6 3 8 . 3 . . . Guns 113 | . 5 17 26 . 6 9 . 4 6 20 5 3 . 5 3 2 . 2 . . . Cannons 21 | . . . . . . . . . . 7 6 4 . . . 3 . 1 . . . AOE 8 | . . . . . . . . . . 7 . . . 1 . . . . . . . Classes Destroyed 19 | . 3 3 4 . 1 . . 1 2 4 . 1 . . . . . . . . . Worker 10 | . . . 2 1 . . . . . 7 . . . . . . . . . . . Builder 4 | . . . . . . . . . 1 2 . . . . 1 . . . . . . Tunneler 1 | . . 1 . . . . . . . . . . . . . . . . . . . Hauler 3 | . . . 2 . . . . . . 1 . . . . . . . . . . . Operator 1 | . . . 1 . . . . . . . . . . . . . . . . . . Drone 2 | . . . . . . . . 2 . . . . . . . . . . . . . Watcher 8 | . 1 3 1 1 . . . . . 2 . . . . . . . . . . . Swarmer 38 | . 3 6 7 . . 5 . . 2 2 2 2 . 2 . 5 . 2 . . . Grunt 48 | . 2 4 12 . 2 4 . 1 3 14 1 4 . . . 1 . . . . . Brawler 7 | . . 1 . . . . . . . 3 3 . . . . . . . . . . Duelist 6 | . . . . . 1 . . 1 . . 4 . . . . . . . . . . Protector 2 | . . . . . . . . . . 2 . . . . . . . . . . . Sentry 19 | . . 7 4 1 . 1 . . . . 2 1 . 1 1 . . 1 . . . Specialist 4 | . . . . . . . . . . 4 . . . . . . . . . . . Hunter 18 | . . . 3 . 1 1 . . . 7 . . . 2 2 2 . . . . . Programmer 8 | . . . . . . . . . 1 5 . 1 . 1 . . . . . . . Heavy 1 | . . . . . . . . . . 1 . . . . . . . . . . . Behemoth 2 | . . . . . . . . . . 1 1 . . . . . . . . . . Decomposer 1 | . . . . . . . . . . . . . . . . 1 . . . . . Samaritan 2 | . . . . . . . . . . . . 1 . . . 1 . . . . . Thug 1 | . . . . . 1 . . . . . . . . . . . . . . . . Savage 2 | . . . . . 2 . . . . . . . . . . . . . . . . Best Kill Streak 12 | . 2 4 8 2 3 7 . 3 4 12 9 7 . 3 1 5 . 3 . . . Combat Bots Only 9 | . 2 4 7 1 3 7 . 3 4 8 9 7 . 3 1 5 . 3 . . . Max Kills in Single Turn 12 | . 1 1 2 1 1 2 . 1 1 12 1 1 . 1 1 1 . 1 . . . Gunslinging 1 | . . . 1 . . . . . . . . . . . . . . . . . . Exploded 7 | . . . . . . . . . . 7 . . . 1 . . . . . . . Melee . | . . . . . . . . . . . . . . . . . . . . . . Uniques/NPCs Destroyed . | . . . . . . . . . . . . . . . . . . . . . . Combat | -11 -10 -9 -8 -7 -7 -7 -7 -6 -6 -5 -5 -5 -5 -4 -4 -4 -4 -3 -2 -2 -1 -------- Run | Jun Mat Mat Mat Fac Low Low Dat Pro Fac Fac Upp Upp Zhi Pro Fac Upp Upp Res Res DSF Acc Damage Taken 13456 | . 198 847 660 98 124 713 . 18 240 2915 1972 503 . 522 199 508 188 844 . . 2907 Core 2746 | . 27 67 53 . . 91 . 18 11 298 298 20 . 54 15 19 . 155 . . 1620 Absorbed by Shields 744 | . . . . . . . . . 68 660 16 . . . . . . . . . . Redirected to Shielding 155 | . . . . . . . . . . . . . . 34 10 11 . 100 . . . Core Remaining (%) 85 | 100 89 83 90 . . . . 84 98 . . . . 30 . . 97 88 . 100 . Volleys Fired 352 | . 21 64 39 7 10 17 . 7 11 65 40 14 . 16 9 23 . 9 . . . Largest 4 | . 2 2 3 3 3 3 . 3 3 4 4 4 . 4 4 4 . 4 . . . Hottest 400 | . 60 79 240 240 240 240 . 240 240 320 400 280 . 294 317 317 . 316 . . . Shots Fired 1100 | . 42 128 116 21 30 52 . 21 33 252 152 55 . 49 33 80 . 36 . . . Gun 891 | . 42 128 116 21 30 52 . 21 33 209 64 37 . 30 24 57 . 27 . . . Cannon 162 | . . . . . . . . . . 43 44 18 . 16 9 23 . 9 . . . Launcher 3 | . . . . . . . . . . . . . . 3 . . . . . . . Special 44 | . . . . . . . . . . . 44 . . . . . . . . . . Kinetic 140 | . 21 64 3 . . . . . . . 15 10 . . . 18 . 9 . . . Thermal 957 | . 21 64 113 21 30 52 . 21 33 252 137 45 . 46 33 62 . 27 . . . Explosive . | . . . . . . . . . . . . . . . . . . . . . . Electromagnetic 3 | . . . . . . . . . . . . . . 3 . . . . . . . Robot Hit Streak 29 | . 3 15 18 21 23 22 . 16 11 25 29 13 . 18 6 9 . 7 . . . Robot Miss Streak 9 | . 9 3 7 4 3 7 . 4 4 4 2 3 . 3 2 4 . 2 . . . Penetration Max 1 | . . . . . . . . . . . . . . . . 1 . . . . . Secondary Targets 5 | . 1 1 1 . . . . 1 . 1 . . . . . . . . . . . Max Gunslinging Chain 1 | . 1 1 1 . . . . 1 . 1 . . . . . . . . . . . Shots Hit Robots 840 | . 20 93 108 19 28 38 . 19 33 216 115 37 . 32 18 43 . 21 . . . Core Hits 463 | . 9 33 72 9 26 28 . 13 26 142 40 19 . 16 10 12 . 8 . . . Critical Kills 2 | . . . . . . . . . . . . 1 . . . 1 . . . . . Critical Parts Destroyed . | . . . . . . . . . . . . . . . . . . . . . . Critical Strikes 12 | . . 3 . . . . . . . 1 4 2 . . 1 1 . . . . . Burn 10 | . . 3 . . . . . . . 1 4 1 . . 1 . . . . . . Meltdown 2 | . . . . . . . . . . . . 1 . . . 1 . . . . . Melee Attacks 1 | . . . . . . . . . . . . . . . . . . 1 . . . Impact . | . . . . . . . . . . . . . . . . . . . . . . Slashing . | . . . . . . . . . . . . . . . . . . . . . . Piercing 1 | . . . . . . . . . . . . . . . . . . 1 . . . Sneak Attacks . | . . . . . . . . . . . . . . . . . . . . . . Combat Hostiles . | . . . . . . . . . . . . . . . . . . . . . . Follow-up Attacks . | . . . . . . . . . . . . . . . . . . . . . . Damage Inflicted 19470 | . 248 1411 2050 368 557 848 . 431 802 6302 2636 974 . 860 430 951 . 602 . . . Guns 14379 | . 248 1411 2050 368 557 848 . 431 732 4144 1234 529 . 548 263 586 . 430 . . . Cannons 3124 | . . . . . . . . . . 726 1032 445 . 217 167 365 . 172 . . . Explosions 1525 | . . . . . . . . . . 1430 . . . 95 . . . . . . . Melee . | . . . . . . . . . . . . . . . . . . . . . . Ramming 72 | . . . . . . . . . 70 2 . . . . . . . . . . . Kinetic 1588 | . 171 675 38 . . . . . . . 340 108 . . . 145 . 111 . . . Thermal 17715 | . 77 736 2012 368 557 848 . 431 732 6300 2296 866 . 765 430 806 . 491 . . . Explosive . | . . . . . . . . . . . . . . . . . . . . . . Electromagnetic 95 | . . . . . . . . . . . . . . 95 . . . . . . . Impact . | . . . . . . . . . . . . . . . . . . . . . . Slashing . | . . . . . . . . . . . . . . . . . . . . . . Piercing . | . . . . . . . . . . . . . . . . . . . . . . Highest Corruption 6 | . . . . 1 1 1 1 1 . . 4 4 4 6 . . . . . . 2 Average Corruption 2 | . . . . 1 1 1 1 1 . . 3 4 4 5 . . . . . . 1 Corruption Purged . | . . . . . . . . . . . . . . . . . . . . . . Corruption Blocked . | . . . . . . . . . . . . . . . . . . . . . . Effects 76 | . . . . . 1 4 . 3 . . 25 10 7 25 . . . . . . 1 Message Errors 15 | . . . . . 1 . . 1 . . 3 1 3 6 . . . . . . . Matter Fused 16 | . . . . . . 1 . 2 . . 3 4 1 5 . . . . . . . Heat Flow Errors 8 | . . . . . . 1 . . . . 5 1 . 1 . . . . . . . Energy Discharges 12 | . . . . . . 1 . . . . 1 1 1 8 . . . . . . . Parts Fused 1 | . . . . . . . . . . . . 1 . . . . . . . . . Data Loss (minor) 13 | . . . . . . . . . . . 9 1 . 2 . . . . . . 1 Data Loss (major) 4 | . . . . . . . . . . . 2 1 1 . . . . . . . . Misfires 2 | . . . . . . 1 . . . . . . . 1 . . . . . . . Alerts 4 | . . . . . . . . . . . 2 . 1 1 . . . . . . . Weapon Failures 1 | . . . . . . . . . . . . . . 1 . . . . . . . Overload Shots . | . . . . . . . . . . . . . . . . . . . . . . Overflow Damage 285 | . . . . . . . . . 18 250 6 . . . . 7 . 4 . . . Projectiles 17 | . . . . . . . . . . . 6 . . . . 7 . 4 . . . Explosions 250 | . . . . . . . . . . 250 . . . . . . . . . . . Melee 18 | . . . . . . . . . 18 . . . . . . . . . . . . Knockbacks 1 | . . . . . . . . . 1 . . . . . . . . . . . . Impact 1 | . . . . . . . . . 1 . . . . . . . . . . . . Kinetic . | . . . . . . . . . . . . . . . . . . . . . . Secondary . | . . . . . . . . . . . . . . . . . . . . . . Self-Inflicted Damage . | . . . . . . . . . . . . . . . . . . . . . . Shots . | . . . . . . . . . . . . . . . . . . . . . . Rammed 4 | . . . . . . . . . 2 2 . . . . . . . . . . . Targets Rammed 4 | . . . . . . . . . 2 2 . . . . . . . . . . . Kicked . | . . . . . . . . . . . . . . . . . . . . . . Crushed . | . . . . . . . . . . . . . . . . . . . . . . Highest Temperature 550 | . 24 219 432 48 84 110 . 84 169 550 346 442 . 210 374 344 . 495 . . . Average Temperature 127 | . 13 77 175 28 31 38 . 35 64 165 112 222 . 71 153 134 . 226 . . . Received Heat Transfer 2119 | . 24 285 252 24 45 153 . 9 63 535 168 279 . 45 9 39 45 36 . . 108 Effects 20 | . . . 4 . . . . . . 10 2 3 . . . . . 1 . . . Shutdowns 5 | . . . 1 . . . . . . 3 . . . . . . . 1 . . . Energy Bleed 5 | . . . . . . . . . . 3 . 2 . . . . . . . . . Interference 8 | . . . 3 . . . . . . 3 2 . . . . . . . . . . Short Circuit 1 | . . . . . . . . . . . . 1 . . . . . . . . . Damage (minor) 1 | . . . . . . . . . . 1 . . . . . . . . . . . Siege Activations . | . . . . . . . . . . . . . . . . . . . . . . Robots Corrupted . | . . . . . . . . . . . . . . . . . . . . . . Combat Hostiles . | . . . . . . . . . . . . . . . . . . . . . . Parts Fried . | . . . . . . . . . . . . . . . . . . . . . . Impact Corruptions 1 | . . . . . . . . . 1 . . . . . . . . . . . . Robots Melted 17 | . . 1 1 1 1 2 . . . 5 2 1 . . . 3 . . . . . Combat Hostiles 16 | . . 1 . 1 1 2 . . . 5 2 1 . . . 3 . . . . . Parts Melted 108 | . . 3 14 1 4 3 . 4 7 33 10 5 . 6 4 12 . 2 . . . Heat Transferred 35578 | . 175 2098 4574 850 1250 1900 . 975 1650 10840 5811 1406 . 1212 805 1364 . 668 . . . Parts Sabotaged . | . . . . . . . . . . . . . . . . . . . . . . Parts Stolen . | . . . . . . . . . . . . . . . . . . . . . . Parts Stripped . | . . . . . . . . . . . . . . . . . . . . . . Power Chain Reactions . | . . . . . . . . . . . . . . . . . . . . . . Missiles Intercepted . | . . . . . . . . . . . . . . . . . . . . . . Alert | -11 -10 -9 -8 -7 -7 -7 -7 -6 -6 -5 -5 -5 -5 -4 -4 -4 -4 -3 -2 -2 -1 ------- Run | Jun Mat Mat Mat Fac Low Low Dat Pro Fac Fac Upp Upp Zhi Pro Fac Upp Upp Res Res DSF Acc Peak Influence 1129 | . 166 260 741 423 . . . . 738 1129 . . . . 138 . . 229 117 87 327 Initial 336 | . . . 88 336 . . . . 227 263 . . . . 12 . . . 117 87 52 Average 286 | . 50 116 369 345 . . . . 405 610 . . . . 54 . . 76 117 87 159 Maximum Alert Level 4 | . . 1 3 2 . . . . 3 4 . . . . . . . 1 . . 1 Low Security (%) 48 | 100 100 83 32 . . . . . . . . . . . 100 . . 86 100 100 74 Level 1 25 | . . 16 20 97 . . . . 65 21 . . . . . . . 13 . . 25 Level 2 14 | . . . 33 2 . . . . 17 39 . . . . . . . . . . . Level 3 10 | . . . 13 . . . . . 17 35 . . . . . . . . . . . Level 4 . | . . . . . . . . . . 3 . . . . . . . . . . . Level 5 . | . . . . . . . . . . . . . . . . . . . . . . High Security . | . . . . . . . . . . . . . . . . . . . . . . Max Security . | . . . . . . . . . . . . . . . . . . . . . . Squads Dispatched 25 | . 2 2 3 . . 1 . . 4 8 . . . . 1 . . 1 . . 3 Investigation 4 | . . 1 . . . 1 . . 1 . . . . . . . . . . . 1 Extermination 2 | . . . . . . . . . 1 1 . . . . . . . . . . . Reinforcement 16 | . 2 1 3 . . . . . . 6 . . . . 1 . . 1 . . 2 Assault 2 | . . . . . . . . . 1 1 . . . . . . . . . . . Garrison 1 | . . . . . . . . . 1 . . . . . . . . . . . . Intercept . | . . . . . . . . . . . . . . . . . . . . . . Searches Triggered . | . . . . . . . . . . . . . . . . . . . . . . Data Miner Redirects 2 | . . . . . . . . . 1 . . . . . . . . . . . 1 Construction Impeded 2 | . . . . . . . . . . 2 . . . . . . . . . . . Haulers Reinforced 1 | . . . . . . . . . . 1 . . . . . . . . . . . Active Scanning Responses . | . . . . . . . . . . . . . . . . . . . . . . Cargo Convoy Interrupts 1 | . . . . . . . . . . 1 . . . . . . . . . . . Stealth | -11 -10 -9 -8 -7 -7 -7 -7 -6 -6 -5 -5 -5 -5 -4 -4 -4 -4 -3 -2 -2 -1 --------- Run | Jun Mat Mat Mat Fac Low Low Dat Pro Fac Fac Upp Upp Zhi Pro Fac Upp Upp Res Res DSF Acc Distress Signals 16 | . 2 2 4 . . . . . . 3 . . . . . . . . . . 5 Communications Jammed . | . . . . . . . . . . . . . . . . . . . . . . Distress Signals . | . . . . . . . . . . . . . . . . . . . . . . Times Spotted 288 | . 10 24 34 4 7 11 . 5 10 57 15 7 . 7 4 7 3 22 . 1 60 Peak Tracking Total 35 | . 4 6 6 2 3 7 . 4 5 13 9 6 . 3 2 4 3 13 . 1 35 Tactical Retreats 18 | . . . 2 . . 1 . . . 2 . . . . . . . 5 . . 8 Traps | -11 -10 -9 -8 -7 -7 -7 -7 -6 -6 -5 -5 -5 -5 -4 -4 -4 -4 -3 -2 -2 -1 ------- Run | Jun Mat Mat Mat Fac Low Low Dat Pro Fac Fac Upp Upp Zhi Pro Fac Upp Upp Res Res DSF Acc Traps Triggered 5 | . 1 . 1 . . . . . . . . . . . . . . . . 2 1 Indirectly . | . . . . . . . . . . . . . . . . . . . . . . Trap Hack Attempts . | . . . . . . . . . . . . . . . . . . . . . . Triggered . | . . . . . . . . . . . . . . . . . . . . . . Disarmed . | . . . . . . . . . . . . . . . . . . . . . . Reprogrammed . | . . . . . . . . . . . . . . . . . . . . . . Reused . | . . . . . . . . . . . . . . . . . . . . . . Traps Extracted . | . . . . . . . . . . . . . . . . . . . . . . Installed . | . . . . . . . . . . . . . . . . . . . . . . Triggered 1 | . . . . . 1 . . . . . . . . . . . . . . . . Machines | -11 -10 -9 -8 -7 -7 -7 -7 -6 -6 -5 -5 -5 -5 -4 -4 -4 -4 -3 -2 -2 -1 ---------- Run | Jun Mat Mat Mat Fac Low Low Dat Pro Fac Fac Upp Upp Zhi Pro Fac Upp Upp Res Res DSF Acc Machines Disabled 11 | . . . . . . . . . 1 9 . . . . 1 . . . . . . Max in Single Turn 7 | . . . . . . . . . . 7 . . . . 1 . . . . . . Garrison Access 1 | . . . . . . . . . 1 . . . . . . . . . . . . Machines Repaired . | . . . . . . . . . . . . . . . . . . . . . . Machines Sabotaged . | . . . . . . . . . . . . . . . . . . . . . . Overloaded Fab Kills . | . . . . . . . . . . . . . . . . . . . . . . Hacking | -11 -10 -9 -8 -7 -7 -7 -7 -6 -6 -5 -5 -5 -5 -4 -4 -4 -4 -3 -2 -2 -1 --------- Run | Jun Mat Mat Mat Fac Low Low Dat Pro Fac Fac Upp Upp Zhi Pro Fac Upp Upp Res Res DSF Acc Machines Accessed 33 | . 2 6 2 . . 1 4 . 2 1 1 1 9 . . . . . 1 . 3 Terminals 19 | . 2 6 2 . . 1 . . 2 1 . 1 . . . . . . 1 . 3 Fabricators . | . . . . . . . . . . . . . . . . . . . . . . Repair Stations . | . . . . . . . . . . . . . . . . . . . . . . Recycling Units . | . . . . . . . . . . . . . . . . . . . . . . Scanalyzers . | . . . . . . . . . . . . . . . . . . . . . . Garrison Access . | . . . . . . . . . . . . . . . . . . . . . . Total Hacks 145 | . 10 19 8 . . 5 31 . 7 3 1 7 48 . . . . . 1 . 5 Successful 114 | . 6 7 5 . . 5 31 . 1 2 1 7 48 . . . . . 1 . . Failed 31 | . 4 12 3 . . . . . 6 1 . . . . . . . . . . 5 Catastrophic 8 | . 1 4 . . . . . . 1 . . . . . . . . . . . 2 Database Lockouts . | . . . . . . . . . . . . . . . . . . . . . . Manual 5 | . . . . . . . . . 5 . . . . . . . . . . . . Terminals 65 | . 10 19 8 . . 5 . . 7 3 . 7 . . . . . . 1 . 5 Fabricators . | . . . . . . . . . . . . . . . . . . . . . . Repair Stations . | . . . . . . . . . . . . . . . . . . . . . . Recycling Units . | . . . . . . . . . . . . . . . . . . . . . . Scanalyzers . | . . . . . . . . . . . . . . . . . . . . . . Garrison Access . | . . . . . . . . . . . . . . . . . . . . . . Terminal Hacks 114 | . 6 7 5 . . 5 31 . 1 2 1 7 48 . . . . . 1 . . Record 67 | . 4 2 2 . . 5 11 . . . . 7 36 . . . . . . . . Part Schematic 15 | . . . . . . . 11 . . . . . 4 . . . . . . . . Robot Schematic 6 | . . . . . . . 6 . . . . . . . . . . . . . . Robot Analysis 4 | . . . . . . . . . . . . . 4 . . . . . . . . Prototype ID Bank 7 | . . . . . . . 3 . . . . . 4 . . . . . . . . Open Door 1 | . . . . . . . . . . . 1 . . . . . . . . . . Open DSF 1 | . . . . . . . . . . . . . . . . . . . 1 . . Branch Access Points 2 | . . 1 . . . . . . . 1 . . . . . . . . . . . Emergency Access Points 1 | . . 1 . . . . . . . . . . . . . . . . . . . Alert Level 1 | . . . 1 . . . . . . . . . . . . . . . . . . Unreport Threat 2 | . 1 1 . . . . . . . . . . . . . . . . . . . Locate Traps 3 | . 1 . 1 . . . . . . 1 . . . . . . . . . . . Surveillance Status 2 | . . 1 . . . . . . 1 . . . . . . . . . . . . Registered Components 1 | . . 1 . . . . . . . . . . . . . . . . . . . Zone Layout 1 | . . . 1 . . . . . . . . . . . . . . . . . . Fabricator Hacks . | . . . . . . . . . . . . . . . . . . . . . . Repair Station Hacks . | . . . . . . . . . . . . . . . . . . . . . . Recycling Unit Hacks . | . . . . . . . . . . . . . . . . . . . . . . Scanalyzer . | . . . . . . . . . . . . . . . . . . . . . . Garrison Access Hacks . | . . . . . . . . . . . . . . . . . . . . . . Unauthorized Hacks . | . . . . . . . . . . . . . . . . . . . . . . Terminals . | . . . . . . . . . . . . . . . . . . . . . . Fabricators . | . . . . . . . . . . . . . . . . . . . . . . Repair Stations . | . . . . . . . . . . . . . . . . . . . . . . Recycling Units . | . . . . . . . . . . . . . . . . . . . . . . Scanalyzers . | . . . . . . . . . . . . . . . . . . . . . . Garrison Access . | . . . . . . . . . . . . . . . . . . . . . . Data Cores Recovered . | . . . . . . . . . . . . . . . . . . . . . . Used . | . . . . . . . . . . . . . . . . . . . . . . Hacking Detections 17 | . 2 6 2 . . 1 . . 2 1 . . . . . . . . . . 3 Full Trace Events 4 | . . 1 . . . 1 . . 1 . . . . . . . . . . . 1 Feedback Events . | . . . . . . . . . . . . . . . . . . . . . . Feedback Blocked . | . . . . . . . . . . . . . . . . . . . . . . Robot Schematics Acquired 6 | . . . . . . . 6 . . . . . . . . . . . . . . Robots Built . | . . . . . . . . . . . . . . . . . . . . . . Authchips . | . . . . . . . . . . . . . . . . . . . . . . Time . | . . . . . . . . . . . . . . . . . . . . . . Total Robot Build Rating . | . . . . . . . . . . . . . . . . . . . . . . Part Schematics Acquired 15 | . . . . . . . 11 . . . . . 4 . . . . . . . . Parts Built . | . . . . . . . . . . . . . . . . . . . . . . Authchips . | . . . . . . . . . . . . . . . . . . . . . . Time . | . . . . . . . . . . . . . . . . . . . . . . Total Part Build Rating . | . . . . . . . . . . . . . . . . . . . . . . Parts Repaired . | . . . . . . . . . . . . . . . . . . . . . . Time . | . . . . . . . . . . . . . . . . . . . . . . Parts Recycled . | . . . . . . . . . . . . . . . . . . . . . . Recycled Matter . | . . . . . . . . . . . . . . . . . . . . . . Retrieved Matter . | . . . . . . . . . . . . . . . . . . . . . . Retrieved Components . | . . . . . . . . . . . . . . . . . . . . . . Parts Scanalyzed . | . . . . . . . . . . . . . . . . . . . . . . Part Schematics Acquired . | . . . . . . . . . . . . . . . . . . . . . . Parts Damaged . | . . . . . . . . . . . . . . . . . . . . . . Bothacking | -11 -10 -9 -8 -7 -7 -7 -7 -6 -6 -5 -5 -5 -5 -4 -4 -4 -4 -3 -2 -2 -1 ------------ Run | Jun Mat Mat Mat Fac Low Low Dat Pro Fac Fac Upp Upp Zhi Pro Fac Upp Upp Res Res DSF Acc Used RIF Installer . | . . . . . . . . . . . . . . . . . . . . . . Robots Hacked . | . . . . . . . . . . . . . . . . . . . . . . Non-combat . | . . . . . . . . . . . . . . . . . . . . . . Combat . | . . . . . . . . . . . . . . . . . . . . . . Robot Hacks Applied . | . . . . . . . . . . . . . . . . . . . . . . Relay Couplers Released 1 | . . . . . . . . . 1 . . . . . . . . . . . . Machine Destruction 1 | . . . . . . . . . 1 . . . . . . . . . . . . Fabnet Peak Effective % . | . . . . . . . . . . . . . . . . . . . . . . Robots Rewired . | . . . . . . . . . . . . . . . . . . . . . . Allies Hacked . | . . . . . . . . . . . . . . . . . . . . . . Hacks Repelled . | . . . . . . . . . . . . . . . . . . . . . . Allies | -11 -10 -9 -8 -7 -7 -7 -7 -6 -6 -5 -5 -5 -5 -4 -4 -4 -4 -3 -2 -2 -1 -------- Run | Jun Mat Mat Mat Fac Low Low Dat Pro Fac Fac Upp Upp Zhi Pro Fac Upp Upp Res Res DSF Acc Total Allies 1 | . . . . . . . . 1 . . . . . . . . . . . . . Largest Group 1 | . . . . . . . . 1 1 1 . . . . . . . . . . . Highest-Rated Group 96 | . . . . . . . . 96 96 96 . . . . . . . . . . . Highest-Rated Ally 96 | . . . . . . . . 96 96 96 . . . . . . . . . . . Total Orders 3 | . . . . . . . . . . . . . . . . . . . . . 3 EXPLORE 3 | . . . . . . . . . . . . . . . . . . . . . 3 Ally Attacks 40 | . . . . . . . . 12 26 2 . . . . . . . . . . . Total Damage 2171 | . . . . . . . . 470 1374 327 . . . . . . . . . . . Kills 11 | . . . . . . . . 2 7 2 . . . . . . . . . . . Allies Corrupted . | . . . . . . . . . . . . . . . . . . . . . . Allies Melted . | . . . . . . . . . . . . . . . . . . . . . . Intel | -11 -10 -9 -8 -7 -7 -7 -7 -6 -6 -5 -5 -5 -5 -4 -4 -4 -4 -3 -2 -2 -1 ------- Run | Jun Mat Mat Mat Fac Low Low Dat Pro Fac Fac Upp Upp Zhi Pro Fac Upp Upp Res Res DSF Acc Robot Analysis Total 4 | . . . . . . . . . . . . . 4 . . . . . . . . Derelict Logs Recovered 10 | . . . . . 1 1 . 1 . . 1 1 . 3 . 2 . . . . . Drone Launches 3 | . . . . . . . . . . . . . . . . . . . . . 3 Drone Recoveries 1 | . . . . . . . . . . . . . . . . . . . . . 1 Exploration | -11 -10 -9 -8 -7 -7 -7 -7 -6 -6 -5 -5 -5 -5 -4 -4 -4 -4 -3 -2 -2 -1 ------------- Run | Jun Mat Mat Mat Fac Low Low Dat Pro Fac Fac Upp Upp Zhi Pro Fac Upp Upp Res Res DSF Acc Turns Passed 9704 | 12 479 1157 781 308 362 697 124 378 450 1003 1104 482 325 761 240 438 11 212 5 32 343 Spaces Moved 5525 | 11 246 536 323 178 212 390 80 225 252 403 577 211 131 261 75 267 8 264 14 58 803 Core 65 | . . . . . . . . . . . . . . 1 . . . . . . 64 Treads 3881 | . 238 536 323 178 212 390 80 225 252 403 577 211 131 125 . . . . . . . Legs 452 | 11 8 . . . . . . . . . . . . 38 75 267 8 45 . . . Wheels 97 | . . . . . . . . . . . . . . 97 . . . . . . . Hover . | . . . . . . . . . . . . . . . . . . . . . . Flight 1030 | . . . . . . . . . . . . . . . . . . 219 14 58 739 Fastest Speed 31 | 120 120 145 145 148 148 148 156 156 156 160 160 160 240 215 122 122 122 31 35 35 32 Average Speed 141 | 120 158 151 145 148 148 153 156 156 157 175 160 206 240 250 257 134 148 52 35 35 38 Slowest Speed 1600 | 120 160 240 225 148 148 156 156 156 160 243 240 240 240 1600 410 192 192 193 35 35 100 Overloaded Moves . | . . . . . . . . . . . . . . . . . . . . . . Propulsion Burnouts . | . . . . . . . . . . . . . . . . . . . . . . Robots Hopped 11 | . . . . . . . . . . . . . . . . . . 1 . . 10 Cave-ins Triggered . | . . . . . . . . . . . . . . . . . . . . . . Teleports 1 | . . . . . . . . . . . . . 1 . . . . . . . . Exploration Rate (%) 35 | 2 57 54 39 8 36 53 69 45 8 16 69 40 62 52 2 52 5 12 1 58 35 Regions Visited 21 Branch Regions 10 Pre-discovered Areas 8 | . . . . . . . 1 . . . 1 1 3 1 . 1 . . . . . Known Exits Taken 5 | . . . . . 1 . . 1 . 1 . . . . . 1 . . 1 . . Unknown Exits Taken 15 | 1 1 1 1 1 . 1 1 . 1 . 1 1 1 1 1 . 1 1 . . . Scrap Searched 9 | . . . . . 1 3 . 1 . . 1 1 . 1 . 1 . . . . . Spaces Dug . | . . . . . . . . . . . . . . . . . . . . . . Terrain Destroyed 71 | . . . . . . . . . . 45 4 . . 3 3 13 . 3 . . . Melee . | . . . . . . . . . . . . . . . . . . . . . . Projectile 32 | . . . . . . . . . . 6 4 . . 3 3 13 . 3 . . . AOE 39 | . . . . . . . . . . 39 . . . . . . . . . . . Terrain Rammed . | . . . . . . . . . . . . . . . . . . . . . . Walls Destroyed . | . . . . . . . . . . . . . . . . . . . . . . Machines Disabled . | . . . . . . . . . . . . . . . . . . . . . . Actions | -11 -10 -9 -8 -7 -7 -7 -7 -6 -6 -5 -5 -5 -5 -4 -4 -4 -4 -3 -2 -2 -1 --------- Run | Jun Mat Mat Mat Fac Low Low Dat Pro Fac Fac Upp Upp Zhi Pro Fac Upp Upp Res Res DSF Acc Total 6655 | 10 293 766 527 206 232 437 79 233 273 550 658 236 141 347 107 307 7 333 13 69 831 Wait 369 | . 9 99 119 3 9 18 . . . 28 6 2 . 65 . 3 . 4 . . 4 Move 5484 | 10 245 535 322 177 211 389 79 224 251 402 576 210 130 260 74 266 7 261 13 57 785 Hop 9 | . . . . . . . . . . . . . . . . . . 1 . . 8 Pick Up 156 | . 8 26 17 7 1 5 . . 3 17 12 6 5 1 13 7 . 13 . . 15 Fast Attach 11 | . 2 3 2 . . . . . . 3 . . . . . . . . . . 1 Attach 95 | . . 2 4 2 . 5 . . 3 12 12 3 3 5 9 4 . 17 . . 14 Detach . | . . . . . . . . . . . . . . . . . . . . . . Swap 64 | . 3 12 9 3 . 3 . 1 2 7 12 1 3 . 2 3 . 2 . . 1 Drop 98 | . 5 25 15 7 1 . . 1 1 14 . . . . . 1 . 25 . . 3 Fire 352 | . 21 64 39 7 10 17 . 7 11 65 40 14 . 16 9 23 . 9 . . . Melee 1 | . . . . . . . . . . . . . . . . . . 1 . . . Ram . | . . . . . . . . . . . . . . . . . . . . . . Kick . | . . . . . . . . . . . . . . . . . . . . . . Crush 4 | . . . . . . . . . 2 2 . . . . . . . . . . . Escape Stasis 12 | . . . . . . . . . . . . . . . . . . . . 12 . Rewire . | . . . . . . . . . . . . . . . . . . . . . . Trap . | . . . . . . . . . . . . . . . . . . . . . . Miscellaneous . | . . . . . . . . . . . . . . . . . . . . . . Route ------- -11/Junkyard -10/Materials (discovered 2 exits: *Mat / [*Min]) -9/Materials (discovered 3 exits: *Mat / *Min x2) -8/Materials -7/Factory -7/Lower Caves -7/Lower Caves (discovered 2 exits: *Fac / *Dat) -7/Data Miner -6/Proximity Caves -6/Factory -5/Factory (discovered 2 exits: *Upp x2) -5/Upper Caves -5/Upper Caves -5/Zhirov -4/Proximity Caves -4/Factory -4/Upper Caves -4/Upper Caves -3/Research -2/Research (discovered 2 exits: Tes / DSF) -2/DSF -1/Access History --------- Turn | Location | Event 1 | -11/Junkyard | Discovered new exit (range 3) 13 | -11/Junkyard | Entered Materials 181 | -10/Materials | Discovered new exit (range 7) 322 | -10/Materials | Build established: Mutant 429 | -10/Materials | Discovered new exit (range 9) 492 | -10/Materials | Entered another Materials area 492 | -9/Materials | Evolved 2 slots: Propulsion x1, Utility x1 512 | -9/Materials | Identified exit to Mines 906 | -9/Materials | Build established: Scavenger-Mutant 1359 | -9/Materials | Build established: Mutant 1597 | -9/Materials | Discovered new exit (range 9) 1649 | -9/Materials | Entered another Materials area 1649 | -8/Materials | Evolved 2 slots: Utility x1, Weapon x1 1943 | -8/Materials | Build established: Gunner 2049 | -8/Materials | Destroyed 7 combat bots 2401 | -8/Materials | Discovered new exit (range 16) 2430 | -8/Materials | Entered Factory 2430 | -7/Factory | Evolved 2 slots: Propulsion x1, Utility x1 2723 | -7/Factory | Discovered new exit (range 5) 2738 | -7/Factory | Entered Lower Caves 2905 | -7/Lower Caves | Identified exit to Lower Caves 2928 | -7/Lower Caves | Ambushed by wild Derelicts 3100 | -7/Lower Caves | Entered another Lower Caves area 3108 | -7/Lower Caves | Discovered new exit (range 2) 3269 | -7/Lower Caves | Attracted the attention of an 0b10 base 3316 | -7/Lower Caves | Destroyed 7 combat bots 3325 | -7/Lower Caves | Lost 5 parts (1p3n1w) 3343 | -7/Lower Caves | Learned 8 Factory zone layouts 3344 | -7/Lower Caves | Learned 6 Proximity Caves zone layouts 3344 | -7/Lower Caves | Learned Research stockpile data 3344 | -7/Lower Caves | Learned Factory security intel 3584 | -7/Lower Caves | Discovered new exit (range 15) 3594 | -7/Lower Caves | Build established: Scavenger-Gunner 3797 | -7/Lower Caves | Entered Data Miner 3797 | -7/Data Miner | Discovered new exit (range 6) 3827 | -7/Data Miner | Met Data Miner 3858 | -7/Data Miner | Learned location of Section 7 (-2) 3858 | -7/Data Miner | Acquired the access code to Warlord's prototype stash 3886 | -7/Data Miner | Received God Mode back door access code from Data Miner 3921 | -7/Data Miner | Entered Proximity Caves 3922 | -6/Proximity Caves | Identified exit to Factory 3984 | -6/Proximity Caves | Escorted by Enhanced Grunt 4010 | -6/Proximity Caves | Spotter reported a threat 4254 | -6/Proximity Caves | Learned Factory terminal intel 4299 | -6/Proximity Caves | Entered Factory 4299 | -6/Factory | Accompanied by 1 ally 4299 | -6/Factory | Evolved 2 slots: Power x1, Utility x1 4302 | -6/Factory | Loaded intel: 26 terminal locations 4588 | -6/Factory | Build established: Scavenger-Tank 4600 | -6/Factory | Garrison activated, responded to threat 4648 | -6/Factory | Incoming assault squad redirected 4682 | -6/Factory | Discovered new exit (range 12) 4749 | -6/Factory | Entered another Factory area 4749 | -5/Factory | Accompanied by 1 ally 4749 | -5/Factory | Evolved 2 slots: Utility x1, Weapon x1 5049 | -5/Factory | First assault squad dispatched 5087 | -5/Factory | Identified exit to Upper Caves 5249 | -5/Factory | Spotted B-75 Beast 5296 | -5/Factory | Destroyed B-75 Beast 5356 | -5/Factory | Cargo convoy interrupted 5381 | -5/Factory | Destroyed 8 combat bots 5611 | -5/Factory | Lost 6 parts (1p2u3w) 5623 | -5/Factory | Destroyed 8 combat bots 5752 | -5/Factory | Entered Upper Caves 5887 | -5/Upper Caves | Attracted the attention of an 0b10 outpost 5952 | -5/Upper Caves | Core integrity fell below 50% 5987 | -5/Upper Caves | Destroyed 9 combat bots 5988 | -5/Upper Caves | Lost 7 parts (2p1n2u2w) 6041 | -5/Upper Caves | Spotted B-75 Beast 6142 | -5/Upper Caves | Learned location of Warlord (-4) 6211 | -5/Upper Caves | Build established: Scavenger-Gunner 6436 | -5/Upper Caves | Destroyed B-75 Beast 6686 | -5/Upper Caves | Attracted the attention of an 0b10 checkpoint 6781 | -5/Upper Caves | Discovered new exit (range 13) 6856 | -5/Upper Caves | Entered another Upper Caves area 6978 | -5/Upper Caves | Learned location of Armory (-4) 7004 | -5/Upper Caves | Attracted the attention of an 0b10 base 7059 | -5/Upper Caves | Destroyed 7 combat bots 7069 | -5/Upper Caves | Lost 4 parts (1p2u1w) 7069 | -5/Upper Caves | Learned 6 Lower Caves zone layouts 7069 | -5/Upper Caves | Learned Research trap positions 7307 | -5/Upper Caves | Discovered new exit (range 14) 7338 | -5/Upper Caves | Entered Zhirov 7338 | -5/Zhirov | Discovered new exit (range 3) 7382 | -5/Zhirov | Met Zhirov 7425 | -5/Zhirov | Learned location of Quarantine (-3) 7425 | -5/Zhirov | Learned location of Testing (-2) 7425 | -5/Zhirov | Learned location of Command (-1) 7473 | -5/Zhirov | Zhirov requested help retrieving the SGEMP Prototype 7605 | -5/Zhirov | Found Alien Artifact 7632 | -5/Zhirov | Found Alien Artifact 7657 | -5/Zhirov | Identified Integrated Dissipator 7657 | -5/Zhirov | Installed Integrated Dissipator, increased core heat dissipation (+20) 7659 | -5/Zhirov | Identified Transdimensional Reconstructor 7659 | -5/Zhirov | Warped through subspace 7663 | -5/Zhirov | Entered Proximity Caves 7771 | -4/Proximity Caves | Learned Research emergency access door positions 8062 | -4/Proximity Caves | Lost 5 parts (1p2n2w) 8269 | -4/Proximity Caves | Attracted the attention of an 0b10 checkpoint 8320 | -4/Proximity Caves | Lost 4 parts (1n2u1w) 8324 | -4/Proximity Caves | Discovered new exit (range 10) 8424 | -4/Proximity Caves | Entered Factory 8424 | -4/Factory | Evolved 2 slots: Utility x2 8640 | -4/Factory | Discovered new exit (range 6) 8664 | -4/Factory | Entered Upper Caves 8847 | -4/Upper Caves | Identified exit to Upper Caves 9102 | -4/Upper Caves | Entered another Upper Caves area 9106 | -4/Upper Caves | Discovered new exit (range 7) 9113 | -4/Upper Caves | Entered Research 9113 | -3/Research | Evolved 2 slots: Utility x2 9114 | -3/Research | Loaded intel: 62 trap records 9143 | -3/Research | Lost 3 parts (3u) 9205 | -3/Research | Lost 5 parts (1p1n1u2w) 9323 | -3/Research | Discovered new exit (range 5) 9325 | -3/Research | Entered another Research area 9325 | -2/Research | Evolved 2 slots: Propulsion x1, Utility x1 9326 | -2/Research | Identified exit to Testing 9330 | -2/Research | Identified exit to DSF 9330 | -2/Research | Entered DSF 9357 | -2/DSF | Discovered new exit (range 15) 9360 | -2/DSF | Additional patrols routed to DSF 9362 | -2/DSF | Entered Access 9362 | -1/Access | Evolved 2 slots: Utility x2 9511 | -1/Access | Lost 3 parts (1p1n1u) 9541 | -1/Access | Incoming investigation squad redirected 9573 | -1/Access | Lost 4 parts (1n3u) 9591 | -1/Access | Spotted B-99 Colossus 9655 | -1/Access | Spotted B-99 Colossus 9673 | -1/Access | Core integrity fell below 50% 9689 | -1/Access | Core integrity fell below 20% 9705 | -1/Access | Destroyed by S-43 Plague with Heavy Machine Gun Last Messages --------------- 09656_ Mak. Salvage Targeting Computer destroyed. 09657_ K-01 Serf cleans the Spectral Interrupter. 09662_ U-05 Engineer destroyed. 09662_ Acquired 14 matter. 09663_ R-10 Processor collects Lgt. Ion Engine. 09664_ K-01 Serf destroyed. 09666_ R-10 Processor collects Structural Scanner. 09667_ Terminal disabled. 09667_ Weapon Cycler destroyed. 09669_ W-44 Eye destroyed. 09669_ Impulse Thruster Array destroyed. 09673_ Imp. Melee Analysis Suite destroyed. 09673_ S-43 Plague destroyed. 09686_ System corrupted: Component data lost. 09687_ Adv. Targeting Computer destroyed. 09691_ Triangulator destroyed. 09696_ S-43 Plague destroyed. 09699_ Acquired Unknown Device. 09700_ Identified Adv. Particle Charger. [Achievement: 20k Club] Map ----- +----------------------------------------------------+ | ???????????????????????????????????????? | | ???????????????????????????????????????? | | ???????????????????????????????????????? | | ???????????????????????????????????????? | | ???????????????????????????????????????? | | ???????????????????????????????????????? | | ???????????????????????????????????????? | | ???????????????????????????????????????? | | ???????????????????????????????????????? | | ???????????????????????????????????????? | | ???????????????????????????????????????? | | ???????????????????????????????????????? | | ???????????????????????????????????????? | | ???????????????????????????????????????? | | ???????????????????????????????????????? | | ???????????????????????????????????????? | | ???????????????????????????????????????? | | ???????????????????????????????????????? | | ???????????????????????????????????????? | | ???????????????????????????????????????? | | ???????????????????????????????????????? | | ???????########+#####??????????????????? | | ???????# #??????????????????? | | ???????# #??????????????????? | | ???????# #??????????????????? | | ???????# @ #??????????????????? | | ???????# #??????????????????? | | ???????# !! #??????????????????? | | ???????# !! #??????????????????? | | ???????# #??????????????????? | | ???????# #??????????????????? | | ???????# ss #??????????????????? | | ???????# ss #??????????????????? | | ???????# #??????????????????? | | ???????#######s#############+####??????? | | ??????????# #??????? | | ??????????# #??????? | | ??????????# #??????? | | ??????????# #??????? | | ??????????# = #??????? | | ??????????# *% #??????? | | ??????????# = ######## | | ??????????####+########## | | ???????????? ???????# | | ?????????? ?????# | | ????????# ???# | | ????????# ""#??# | | ????????# " ""#??# | | ????????#""" ""#??# | | ????????# """ T#??################ | +----------------------------------------------------+ Best States ------------- Heat Dissipation 118 Energy Generation 37 Energy Capacity 540 Matter Stores 300 Matter Capacity 300 Sight Range 18 Robot Scan Range 15 Terrain Scan Range 14 Terrain Scan Density 210 Power Amplification 20 Armor Coverage 225 Core Shielding 40 Point Defense Rating 80 Weapon Cycling 30 Phase Shifting 10 Evasion (%) 72 Targeting Accuracy 16 Melee Accuracy 6 Recoil Reduction 4 Matter Filtering 50 Salvage Targeting 4 Item Schematics ----------------- Combat Drone Bay | -7/Data Miner | Free Lgt. Regenerative Plating | -7/Data Miner | Free Biomechanical Wings | -7/Data Miner | Free Exp. Propulsion Shielding | -7/Data Miner | Free Shock Maul | -7/Data Miner | Free Gyrokinetic Inverter | -7/Data Miner | Free Imp. Kinecellerator | -7/Data Miner | Free Imp. Remote Datajack | -7/Data Miner | Free Lyr. Medium Armor Plating | -7/Data Miner | Free Adv. Trap Extractor | -7/Data Miner | Free Adv. Cryofiber Web | -7/Data Miner | Free Assault Drone Bay | -5/Zhirov | Free Exp. Heat Sink | -5/Zhirov | Free Exp. Optical Array | -5/Zhirov | Free Imp. Arc Thrower | -5/Zhirov | Free Robot Schematics ------------------ L-41 Fighter | -7/Data Miner | Free G-47 Trooper | -7/Data Miner | Free S-27 Virus | -7/Data Miner | Free X-57 Shotgunner | -7/Data Miner | Free A-15 Conveyor | -7/Data Miner | Free G-50 Soldier | -7/Data Miner | Free Fabricated ------------ Nothing Alien Tech Used ----------------- Integrated Dissipator Transdimensional Reconstructor Achievements -------------- 20k Club Quick And Dirty Significant Disruption Challenges ------------ None Game ------ Seed NeutrinoImprovedMaul Manual? 0 Play Time 02:07:47 Cumulative 28.8 hours Start 2023.11.28 @ 11:03:23 End 2023.11.28 @ 13:28:53 Sessions 1 Manual Loads 0 Difficulty Rogue Special Mode None Game No. 37 Rogue 37 Adventurer 0 Explorer 0 Win Type - Total 0 Types 0/0/0/0/0/0/0/0/0 Lore% 35 Gallery% 44 Achievement% 33 Wizard Run 0 Options --------- ASCII 0 Keyboard 0 Movement Mouse Keybinds 0 Fullscreen 2 Font 18/SmallcapsGlow Map View 76x50 Tactical HUD 1 Map Filters NONE Filters NONE Steam 1 RUN: de9be738-fb33-4f9d-9662-45390d77bee5